Cogmind - Beta 17.1 @@@ ROGUE MODE // 2026.09.16 @ 18:39:50 Player: Somberlain Result: Destroyed by G-73 Enforcer with Phase Gun Performance ------------- Evolutions (8) 4000 Regions Visited (16) 3200 Robots Destroyed (202) 1010 Value Destroyed (8813) 8813 Prototype IDs (40) 800 Alien Tech Used (0) 0 Bonus (6823) 6823 TOTAL SCORE: 24646 Bonus ------- High Alert Combat Kills 247 Follower Combat Kills 2877 Registered with UFD 300 Met Optimus in HQ 500 Built Enhanced Grunts 300 A7 Reached Mainframe 300 Met R17 at Cetus 500 Met R17 at Research 2000 Friendly Fire -201 Cogmind --------- Core Integrity 0/1450 Matter 290/300 Energy 99/150 System Corruption 47% Temperature Cool (9) Movement Core (850) Ox16 Location -2/Research Parts ------- > --- POWER (2) -------- Micro Antimatter Reactor > --- PROPULSION (5) --- (None) > --- UTILITY (12) ----- High-capacity Storage Unit Advanced Signal Interpreter Surveybot 24 Chip Advanced Target Analyzer Advanced Target Analyzer Graphene Brace Improved Hacking Suite > --- WEAPON (4) ------- (None) > --- INVENTORY (20) --- Improved Coolant Injector Advanced Energy Well (500) Machine Analyzer Terrain Scan Processor Advanced Focal Shield Advanced Hardlight Generator Authchip [R/Combat] Gamma Rifle Gamma Rifle Gamma Rifle Gamma Rifle Gamma Rifle Plasma Rifle Variable Charge Gun Phase Gun Dispersion Rifle Heavy Gauss Cannon Advanced Remote Datajack Peak State ------------ > --- POWER ------------ Particle Reactor Micro Antimatter Reactor > --- PROPULSION ------- Biometal Leg Improved Thunder Leg Improved Thunder Leg Improved Thunder Leg Improved Thunder Leg > --- UTILITY ---------- Advanced Heat Sink Improved Coolant Injector High-capacity Storage Unit Advanced Energy Well Advanced Signal Interpreter Surveybot 24 Chip Advanced Target Analyzer Advanced Target Analyzer Particle Accelerator Graphene Brace Improved Hacking Suite Improved Hacking Suite > --- WEAPON ----------- Gamma Rifle Gamma Rifle Gamma Rifle Gamma Rifle > --- INVENTORY -------- Light Quantum Reactor Myomer Leg Myomer Leg Machine Analyzer Advanced Focal Shield Advanced Hardlight Generator Authchip [R/Combat] Gamma Rifle Gamma Rifle Plasma Rifle Variable Charge Gun Phase Gun Dispersion Rifle Helical Railgun Heavy Gauss Cannon Micro-nuke Launcher Fusion Bomb Launcher Fusion Bomb Launcher Advanced Remote Datajack Plasma Lance [Rating: 174] Favorites ----------- Power Micro Nuclear Core Engine Light Angular Momentum Engine Power Core Micro Nuclear Core Reactor Compact Particle Reactor Propulsion Carbon-fiber Leg Treads Light Treads Leg Carbon-fiber Leg Wheel Compact Wheel Hover Unit Improved Gyrokinetic Inverter Flight Unit Q-thruster Utility Hacking Suite Device Advanced Heat Sink Storage Large Storage Unit Processor Improved Signal Interpreter Hackware Hacking Suite Protection Centrium Medium Armor Plating Weapon Gatling Laser Energy Gun Gatling Laser Energy Cannon Heavy Phase Cannon Ballistic Gun Gauss Rifle Ballistic Cannon Bore Cannon Launcher Fusion Bomb Launcher Special Weapon Improved Plasma Cutter Impact Weapon Powered Hammer Slashing Weapon Ripper Piercing Weapon Plasma Lance Special Melee Weapon Advanced Datajack Build | -11 -10 -10 -9 -8 -7 -7 -7 -7 -5 -5 -5 -5 -5 -4 -3 -2 ------- Run | Yrd Mat Min Mat Mat Fac Sto Rec Scr Fac Ext Cet Arc Hub Fac Res Res Slots Evolved 16 | . . . 2 2 2 . . . 4 . . . . 2 2 2 Power 1 | . . . . . . . . . 1 . . . . . . . Propulsion 3 | . . . . 1 . . . . 1 . . . . . . 1 Utility 10 | . . . 2 1 2 . . . 2 . . . . . 2 1 Weapon 2 | . . . . . . . . . . . . . . 2 . . Parts Attached 269 | 6 5 4 16 25 19 6 1 13 11 49 22 3 5 10 49 25 Power 29 | 1 1 1 2 4 1 . 1 . 1 7 3 . . 1 3 3 Engine 8 | 1 . 1 2 1 . . . . . 3 . . . . . . Core 10 | . 1 . . 3 1 . 1 . 1 3 . . . . . . Reactor 11 | . . . . . . . . . . 1 3 . . 1 3 3 Propulsion 75 | 2 . 3 . 10 2 3 . 3 5 15 4 . 2 1 20 5 Treads 6 | 2 . 2 . . . . . . 1 . 1 . . . . . Leg 64 | . . . . 10 2 3 . 3 4 15 3 . 2 . 17 5 Wheel 1 | . . 1 . . . . . . . . . . . . . . Hover 1 | . . . . . . . . . . . . . . 1 . . Flight 3 | . . . . . . . . . . . . . . . 3 . Utility 96 | 1 2 . 6 5 10 . . 7 5 15 11 . 2 7 18 7 Device 48 | . . . 3 4 7 . . 3 1 7 4 . 1 4 12 2 Storage 11 | 1 1 . 1 . . . . 3 . 3 . . . . 2 . Processor 15 | . 1 . . 1 . . . 1 1 3 1 . . . 2 5 Hackware 11 | . . . 2 . 3 . . . . . 2 . 1 3 . . Protection 11 | . . . . . . . . . 3 2 4 . . . 2 . Artifact . | . . . . . . . . . . . . . . . . . Weapon 69 | 2 2 . 8 6 6 3 . 3 . 12 4 3 1 1 8 10 Energy Gun 31 | . . . 6 3 1 2 . 1 . 3 2 2 . 1 3 7 Energy Cannon 4 | . . . . 1 . 1 . . . . 2 . . . . . Ballistic Gun 10 | 2 1 . . 1 3 . . . . . . . . . 3 . Ballistic Cannon 7 | . . . . . . . . . . 6 . . . . 1 . Launcher 8 | . . . 2 . 2 . . 1 . . . . . . . 3 Special Weapon 3 | . 1 . . . . . . . . 2 . . . . . . Impact Weapon 3 | . . . . 1 . . . 1 . . . . 1 . . . Slashing Weapon 1 | . . . . . . . . . . 1 . . . . . . Piercing Weapon 1 | . . . . . . . . . . . . . . . 1 . Special Melee Weapon 1 | . . . . . . . . . . . . 1 . . . . Unidentified Prototypes 25 | . . . 4 1 . 2 . . . 1 9 . . . 7 1 Corrupted Parts 2 | . . . . . . . . . . . . . 1 1 . . System Corruption 6 | . . . . . . . . . . . . . 5 1 . . Parts Lost 111 | . 4 2 1 6 2 . 1 10 10 13 8 . 1 19 9 25 Power 15 | . 1 1 . 2 . . . . 2 3 1 . . 3 . 2 Propulsion 40 | . 1 . . 4 . . . 4 3 6 3 . . 4 4 11 Utility 32 | . . . . . 2 . 1 2 3 3 1 . 1 9 4 6 Weapon 24 | . 2 1 1 . . . . 4 2 1 3 . . 3 1 6 Highest Loss Streak 16 | . 2 1 1 3 1 . 1 8 4 4 7 . 1 16 6 10 To Critical Strikes 1 | . . . . . . . . . . . 1 . . . . . Average Backups 12 | . 1 8 11 13 14 15 14 14 11 13 11 13 13 11 6 18 Power . | . . . . 1 1 1 . . 1 . . . . . . . Propulsion . | . . 1 2 . 1 1 1 . . . . . . . 2 2 Utility 6 | . . 3 3 5 5 7 8 7 7 7 8 10 10 8 2 4 Weapon 4 | . 1 3 4 5 6 5 4 4 . 2 1 1 1 . 1 10 Tool/Special . | . . . . . . . . . . . . . . . . . Unused Backups 39 | . . . 3 5 5 . 2 4 . 3 3 3 . 2 1 8 Power 3 | . . . . 2 1 . . . . . . . . . . . Propulsion 5 | . . . 1 . . . . 1 . . . . . 1 1 1 Utility 20 | . . . . 2 3 . 2 1 . 2 3 2 . 1 . 4 Weapon 9 | . . . 2 1 1 . . 1 . 1 . 1 . . . 2 Tool/Special 2 | . . . . . . . . 1 . . . . . . . 1 Average Slot Usage (%) 90 | . 88 69 92 98 96 100 99 99 66 90 89 100 99 79 79 90 Engine 1 | . 9 5 11 1 . . . . . 2 3 . . . . . Core 3 | . 2 . . 7 7 7 7 7 4 5 3 . . . . . Reactor 2 | . . . . . . . . . . . 3 11 10 8 6 6 Treads 2 | . 23 12 22 . . . . . 2 . . . . . . . Leg 17 | . . . . 26 22 23 23 22 13 21 12 23 22 16 15 17 Device 13 | . . . 6 9 11 15 16 21 13 17 17 11 12 8 15 16 Storage 7 | . 20 14 11 9 7 7 7 7 5 5 5 10 6 4 4 6 Processor 8 | . 6 14 4 8 7 7 7 8 5 7 11 11 11 10 8 15 Hackware 14 | . . . 15 18 24 23 21 15 11 11 11 11 15 19 9 7 Protection 1 | . . . . . . . . . 3 4 4 5 3 . 2 . Energy Gun 7 | . . . 19 14 4 12 7 6 . 3 5 9 10 7 9 8 Ballistic Gun 2 | . 23 14 . . 8 . . . . . . . . . 2 . Impact Weapon 1 | . . . . . . 1 6 6 3 . . . . 2 . . Peak Build Rating 174 | 6 7 9 26 38 48 46 45 54 66 96 118 121 121 127 151 174 Average Rating 67 | 4 6 6 19 34 43 44 43 48 48 77 92 120 116 102 110 151 On Entrance 55 | . 6 7 8 25 37 46 45 44 39 44 96 118 121 117 43 151 Avg Prop Armor Cover (%) 15 | . . 4 . . . . . . 12 12 6 . . 4 21 7 Naked Turns . | . . . . . . . . . . . . . . . . . Heaviest Build 120 | 14 34 29 39 40 37 37 36 47 48 82 80 83 80 75 120 120 Greatest Support 140 | 40 40 40 40 45 42 45 45 50 71 95 101 101 112 112 112 140 Greatest Overweight (x) 17 | . 1 1 . 2 . . . 12 2 1 2 . . 1 4 17 Average Overweight (x) . | . . . . . . . . . . . . . . . . . Largest Inventory Capacity 20 | 8 15 15 15 15 15 15 15 15 15 15 15 15 15 15 20 20 Average Capacity 14 | 6 14 15 15 15 15 15 15 15 15 15 15 15 15 13 8 20 Most Carried 20 | . 3 11 14 15 15 15 15 15 14 15 15 15 15 15 13 20 Average Carried 13 | . 1 8 11 13 14 15 14 14 12 14 12 14 14 12 6 18 Final Capacity 20 | 8 15 15 15 15 15 15 15 15 15 15 15 15 15 5 20 20 Final Carried 18 | . 3 11 13 15 15 15 15 11 12 15 15 15 15 5 13 18 Class Distribution -------------------- 36% | Hacker-Mutant 27% | Scavenger-Mutant 8% | Scavenger-Skirmisher 6% | Scavenger-Gunner 6% | Mutant 4% | Scavenger-Tank 3% | Hacker-Assassin 3% | Scavenger-Assassin Dominant Class ---------------- Mutant | -10/Materials Mutant | -10/Mines Scavenger-Mutant | -9/Materials Scavenger-Mutant | -8/Materials Hacker-Mutant | -7/Factory Hacker-Mutant | -7/Storage Hacker-Mutant | -7/Recycling Hacker-Mutant | -7/Scraptown Hacker-Mutant | -5/Factory Scavenger-Skirmisher | -5/Extension Scavenger-Mutant | -5/Cetus Scavenger-Mutant | -5/Archives Scavenger-Skirmisher | -5/Hub_04(d) Scavenger-Mutant | -4/Factory Scavenger-Tank | -3/Research Scavenger-Gunner | -2/Research Resources | -11 -10 -10 -9 -8 -7 -7 -7 -7 -5 -5 -5 -5 -5 -4 -3 -2 ----------- Run | Yrd Mat Min Mat Mat Fac Sto Rec Scr Fac Ext Cet Arc Hub Fac Res Res Matter Collected 6950 | 218 328 107 298 625 653 158 33 289 228 1504 358 60 220 109 850 912 Remotely 206 | . . . . . . . . . . . . . . . 206 . Salvage Created 9226 | . 577 . 899 1317 770 58 . 1357 320 1110 143 97 307 373 219 1679 Parts 432 | . 27 . 67 77 29 6 . 60 11 47 1 9 11 7 1 79 Haulers Intercepted 7 | . . . 2 2 . . . . . 1 . . 1 . . 1 Recyclers Shooed 7 | . 1 . 3 2 . . . . . . . . . 1 . . Parts Field Recycled . | . . . . . . . . . . . . . . . . . Retrieved Matter . | . . . . . . . . . . . . . . . . . Parts Self-Destructed . | . . . . . . . . . . . . . . . . . Prevented . | . . . . . . . . . . . . . . . . . Parts Restored 2 | . . . . . . . . . . . . . . 2 . . Broken 2 | . . . . . . . . . . . . . . 2 . . Kills | -11 -10 -10 -9 -8 -7 -7 -7 -7 -5 -5 -5 -5 -5 -4 -3 -2 ------- Run | Yrd Mat Min Mat Mat Fac Sto Rec Scr Fac Ext Cet Arc Hub Fac Res Res Combat Hostiles Destroyed 144 | . 13 . 13 22 16 1 . 24 5 15 2 . 2 3 3 25 Melee 17 | . . . . . . . . . 3 . . . . . . 14 Guns 67 | . 13 . 9 12 13 1 . 5 . 4 1 . 2 3 . 4 Cannons 14 | . . . . 3 . . . . . 11 . . . . . . AOE 37 | . . . 3 6 2 . . 19 . . . . . . . 7 Classes Destroyed 21 | . 3 . 7 1 2 . . 4 . 3 . . . . . 1 Worker 7 | . . . 3 1 1 . . . . 1 . . . . . 1 Builder 8 | . . . 2 4 . . . . . 1 . . . . . 1 Tunneler 1 | . . . . . . . . . . 1 . . . . . . Hauler 7 | . . . 2 2 . . . . . 1 . . 1 . . 1 Recycler 9 | . 2 . 2 2 . . . . 1 . . . . 1 . 1 Mechanic 1 | . . . . . . . . . . . . . . . . 1 Operator 12 | . . . 4 2 2 . . . 1 . . 3 . . . . Watcher 11 | . . . 2 4 . . . . . . . . . 2 . 3 Swarmer 11 | . 3 . . 3 . . . . 4 . . . 1 . . . Grunt 52 | . 10 . 10 11 7 . . . . 7 . . 1 . 2 4 Brawler 1 | . . . . . 1 . . . . . . . . . . . Duelist 1 | . . . 1 . . . . . . . . . . . . . Sentry 15 | . . . 2 5 2 1 . . . 4 . . . . . 1 Demolisher 1 | . . . . . . . . . . 1 . . . . . . Hunter 10 | . . . . 3 4 . . . . 2 . . . . 1 . Programmer 25 | . . . . . 2 . . . 1 . . . . 3 . 19 Behemoth 1 | . . . . . . . . . . 1 . . . . . . Cetus Guard 2 | . . . . . . . . . . . 2 . . . . . Enhanced Grunt 1 | . . . . . . . . . . . . . 1 . . . Explorer 2 | . . . . . . . . 2 . . . . . . . . Ranger 1 | . . . . . . . . 1 . . . . . . . . Guru 1 | . . . . . . . . 1 . . . . . . . . Scrapper 20 | . . . . . . . . 20 . . . . . . . . Guerrilla 2 | . . . . . . . . . . 1 . . . . . 1 Best Kill Streak 22 | . 6 . 9 14 5 1 . 22 3 3 1 1 1 3 2 4 Combat Bots Only 22 | . 5 . 4 6 5 1 . 22 3 3 1 . 1 3 2 3 Max Kills in Single Turn 5 | . 1 . 5 3 2 1 . 5 1 1 1 1 1 1 2 2 Gunslinging . | . . . . . . . . . . . . . . . . . Exploded 5 | . . . 1 1 1 . . 5 . . . . . . . 2 Melee 1 | . . . . . . . . . 1 . . . . . . 1 Uniques/NPCs Destroyed . | . . . . . . . . . . . . . . . . . Combat | -11 -10 -10 -9 -8 -7 -7 -7 -7 -5 -5 -5 -5 -5 -4 -3 -2 -------- Run | Yrd Mat Min Mat Mat Fac Sto Rec Scr Fac Ext Cet Arc Hub Fac Res Res Hostile Shots Fired 1836 | . 93 10 46 122 160 9 . 73 204 134 67 . 16 308 206 388 Missed 632 | . 22 3 11 31 55 2 . 16 85 44 24 . 1 125 91 122 Hits 1204 | . 71 7 35 91 105 7 . 57 119 90 43 . 15 183 115 266 Melee 12 | . . . 1 . 1 . . 8 . 2 . . . . . . Projectile 1192 | . 71 7 34 91 104 7 . 49 119 88 43 . 15 183 115 266 AOE 4 | . . . . . . . . . 1 3 . . . . . . Critical Strikes 73 | . 1 . . 2 3 . . 2 7 3 6 . 1 8 4 36 Actively Blocked 38 | . . . . . . . . . 1 . . . . . 1 36 Part Disruptions 6 | . . . . . . . . . 1 . . . . . . 5 Damage Taken 21170 | . 792 150 478 1543 1244 55 . 1176 2277 2007 1052 15 238 2916 1884 5343 Core 4858 | . 134 68 109 285 258 18 . 268 252 293 88 . 27 630 978 1450 Absorbed by Shields 1291 | . . . . . . . . . . 128 172 15 94 . 112 770 Redirected to Shielding 101 | . . . . . . . . . 54 47 . . . . . . Ignored by Resistances 64 | . . . . . . . . . . . 9 . . 55 . . Regen/Repaired (Parts) 926 | . . . 92 356 476 . . . . . . . . 2 . . Core Remaining (%) 45 | 100 . 19 72 48 . . . 22 . . . . 34 45 24 . Volleys Fired 508 | . 63 . 43 97 66 6 . 22 . 83 14 16 16 25 22 35 Largest 4 | . 2 . 2 2 2 2 . 2 . 2 2 2 2 3 4 4 Hottest 330 | . 100 . 131 144 155 160 . 160 . 306 330 188 188 276 289 300 Shots Fired 967 | . 104 . 83 176 125 9 . 36 . 158 23 32 32 49 71 69 Gun 738 | . 101 . 77 123 122 9 . 23 . 46 13 32 32 49 64 47 Cannon 146 | . . . . 22 . . . . . 111 9 . . . 4 . Launcher 59 | . . . 6 15 3 . . 13 . . . . . . . 22 Special 24 | . 3 . . 16 . . . . . 1 1 . . . 3 . Kinetic 302 | . 101 . . . 57 . . . . 111 . . . . 20 13 Thermal 578 | . 3 . 77 161 65 9 . 22 . 46 22 32 32 49 51 9 Explosive 59 | . . . 6 15 3 . . 13 . . . . . . . 22 Electromagnetic 26 | . . . . . . . . 1 . . . . . . . 25 Robot Hit Streak 12 | . 8 . 8 12 10 9 . 11 . 8 8 6 6 7 10 11 Robot Miss Streak 9 | . 3 . 4 2 5 1 . 4 . 6 2 4 2 2 8 9 Penetration Max 1 | . . . . . 1 . . . . 1 . . . . . . Secondary Targets 14 | . 3 . 2 2 3 . . 1 . . . . 2 1 . . Max Gunslinging Chain 1 | . 1 . 1 1 1 . . 1 . . . . 1 1 . . Shots Hit Robots 635 | . 60 . 49 101 88 5 . 26 14 82 16 18 20 39 26 91 Core Hits 387 | . 29 . 34 60 49 5 . 73 3 35 4 7 6 15 8 59 Critical Kills 12 | . . . . . . . . . . 12 . . . . . . Critical Parts Destroyed 26 | . . . . . . . . . 3 20 . . . 1 1 1 Critical Strikes 75 | . . . 3 6 4 . . . 3 41 . . . 1 2 15 Burn 18 | . . . 3 6 4 . . . . 3 . . . . 1 1 Destroy 40 | . . . . . . . . . . 38 . . . . 1 1 Corrupt 1 | . . . . . . . . . . . . . . . . 1 Smash 4 | . . . . . . . . . 3 . . . . 1 . . Impale 12 | . . . . . . . . . . . . . . . . 12 Melee Attacks 146 | . . . . 1 3 3 3 2 30 6 . 1 . 8 . 89 Impact 50 | . . . . 1 3 3 3 2 30 . . . . 8 . . Slashing 6 | . . . . . . . . . . 6 . . . . . . Piercing 89 | . . . . . . . . . . . . . . . . 89 Sneak Attacks 6 | . . . . . . . . . 2 . . 1 . 2 . 1 Combat Hostiles 1 | . . . . . . . . . 1 . . . . . . . Follow-up Attacks . | . . . . . . . . . . . . . . . . . Damage Inflicted 23109 | . 856 . 1384 3027 2249 125 . 2446 776 2473 595 563 648 1432 770 5765 Guns 11232 | . 856 . 912 1698 1985 125 . 512 . 852 424 563 646 1090 764 805 Cannons 2133 | . . . . 375 . . . . . 1587 171 . . . . . Explosions 6024 | . . . 472 954 264 . . 1934 . . . . . . . 2400 Melee 3692 | . . . . . . . . . 772 34 . . . 326 . 2560 Ramming 28 | . . . . . . . . . 4 . . . 2 16 6 . Kinetic 3539 | . 856 . . . 763 . . . . 1587 . . . . 122 211 Thermal 9371 | . . . 912 2073 1222 125 . 495 . 852 595 563 646 1090 642 156 Explosive 6024 | . . . 472 954 264 . . 1934 . . . . . . . 2400 Electromagnetic 455 | . . . . . . . . 17 . . . . . . . 438 Impact 1098 | . . . . . . . . . 772 . . . . 326 . . Slashing 34 | . . . . . . . . . . 34 . . . . . . Piercing 2560 | . . . . . . . . . . . . . . . . 2560 Highest Corruption 47 | . . . 3 . 3 . . . 13 13 3 3 9 4 . 47 Average Corruption 6 | . . . 3 . 1 . . . 6 7 3 3 4 2 . 20 Corruption Purged 13 | . . . . . 3 . . . . 10 . . . . . . Corruption Blocked . | . . . . . . . . . . . . . . . . . Effects 227 | . . . 16 . 13 . . . 7 81 17 8 13 9 . 63 Message Errors 53 | . . . 5 . 2 . . . 1 24 3 . 3 1 . 14 Matter Fused 52 | . . . 3 . 2 . . . 1 15 8 1 8 2 . 12 Heat Flow Errors 31 | . . . 1 . 3 . . . 1 12 1 2 1 2 . 8 Energy Discharges 24 | . . . . . 2 . . . . 7 3 1 . 4 . 7 Parts Rejected 3 | . . . . . . . . . 1 1 . . . . . 1 Parts Fused 2 | . . . . . . . . . . 1 . . 1 . . . Data Loss (minor) 29 | . . . 4 . 2 . . . 1 5 1 4 . . . 12 Data Loss (major) 10 | . . . . . 1 . . . 1 5 1 . . . . 2 Misfires 6 | . . . 1 . 1 . . . . 2 . . . . . 2 Alerts 3 | . . . 1 . . . . . . 2 . . . . . . Misdirections 4 | . . . . . . . . . 1 1 . . . . . 2 Weapon Failures 10 | . . . 1 . . . . . . 6 . . . . . 3 Overload Shots 11 | . . . . . . . . . . 4 7 . . . . . Overflow Damage 906 | . . . 24 31 . . . . 295 20 . . . 118 . 418 Projectiles 38 | . . . . 18 . . . . . 20 . . . . . . Explosions 84 | . . . 24 13 . . . . . . . . . . . 47 Melee 784 | . . . . . . . . . 295 . . . . 118 . 371 Knockbacks 15 | . . . . . . . . . 4 10 . . . 1 . . Impact 4 | . . . . . . . . . 3 . . . . 1 . . Kinetic 10 | . . . . . . . . . . 10 . . . . . . Secondary 1 | . . . . . . . . . 1 . . . . . . . Self-Inflicted Damage 358 | . . . . 215 . . . 49 . . . . . 7 3 84 Shots 10 | . . . . 3 . . . 3 . . . . . . . 4 Rammed 5 | . . . . . . . . . . . . . . 4 1 . Targets Rammed 8 | . . . . . . . . . 2 . . . 1 4 1 . Kicked 3 | . . . . . . . . . 2 . . . 1 . . . Crushed . | . . . . . . . . . . . . . . . . . Highest Temperature 378 | . 60 . 253 375 287 78 . 284 177 353 230 198 378 222 195 200 Average Temperature 89 | . 21 . 64 86 121 40 . 92 86 114 89 77 112 81 106 82 Received Heat Transfer 3330 | . 393 9 219 477 402 18 . 542 90 576 142 . 8 129 258 67 Effects 8 | . . . . 2 2 . . 2 . 1 . . 1 . . . Shutdowns 1 | . . . . 1 . . . . . . . . . . . . Energy Bleed 2 | . . . . . 1 . . . . . . . 1 . . . Interference 5 | . . . . 1 1 . . 2 . 1 . . . . . . Siege Activations . | . . . . . . . . . . . . . . . . . Martial Activations . | . . . . . . . . . . . . . . . . . Shielding Activations . | . . . . . . . . . . . . . . . . . Robots Disrupted . | . . . . . . . . . . . . . . . . . Combat Hostiles . | . . . . . . . . . . . . . . . . . Robots Corrupted 6 | . . . . . . . . . 4 . . . . 1 . 1 Combat Hostiles 2 | . . . . . . . . . 2 . . . . . . . Parts Fried 11 | . . . . . . . . . 4 . . . . 2 . 5 Impact Corruptions 16 | . . . . . . . . . 13 . . . . 3 . . Robots Melted 8 | . . . 1 1 1 . . . . . 1 . 1 . 3 . Combat Hostiles 7 | . . . 1 1 1 . . . . . 1 . . . 3 . Parts Melted 54 | . . . 4 8 14 . . 4 . 5 4 1 . 7 6 1 Heat Transferred 16349 | . . . 2183 4218 2772 262 . 640 . 1347 720 722 796 1258 1133 298 Parts Sabotaged . | . . . . . . . . . . . . . . . . . Parts Stolen . | . . . . . . . . . . . . . . . . . Parts Stripped . | . . . . . . . . . . . . . . . . . Power Chain Reactions . | . . . . . . . . . . . . . . . . . Alert | -11 -10 -10 -9 -8 -7 -7 -7 -7 -5 -5 -5 -5 -5 -4 -3 -2 ------- Run | Yrd Mat Min Mat Mat Fac Sto Rec Scr Fac Ext Cet Arc Hub Fac Res Res Maximum Alert Level 3 | . . . 1 1 . . . . . 2 1 1 3 2 . 2 Low Security (%) 65 | 100 100 100 61 37 100 100 100 . 100 44 30 55 13 26 100 52 Level 1 22 | . . . 38 62 . . . . . 15 69 44 16 63 . 14 Level 2 10 | . . . . . . . . . . 40 . . 8 9 . 33 Level 3 2 | . . . . . . . . . . . . . 62 . . . Level 4 . | . . . . . . . . . . . . . . . . . Level 5 . | . . . . . . . . . . . . . . . . . High Security . | . . . . . . . . . . . . . . . . . Max Security . | . . . . . . . . . . . . . . . . . Peak Influence 958 | . 113 27 278 377 181 79 29 . 129 646 381 242 958 452 77 652 Initial 452 | . . 27 . 80 154 72 . . . . 358 100 48 452 8 7 Average 165 | . 48 . 117 228 53 27 1 . 35 286 241 179 630 230 17 252 Influence Increases 8269 | . 341 . 504 912 511 97 60 5 363 1629 527 238 1196 220 367 1299 Destroy 0b10 Robot/C 3660 | . 260 . 260 440 320 20 . . 100 820 220 80 460 60 120 500 Destroy 0b10 Robot/NC 340 | . 10 . 75 75 15 . . 5 10 35 10 15 35 15 . 40 Destroy Leader 792 | . 50 . 58 142 110 10 . . 20 102 20 . 108 24 20 128 Allied During Kill 1118 | . . . . . . . . . . 372 213 95 401 . 33 4 Successful Hack 250 | . 6 . 24 36 10 21 57 . 22 13 8 . 18 . 17 18 Disable Machine 570 | . 15 . 45 90 30 30 . . 15 150 . 30 90 30 15 30 Destroy Structure 1014 | . . . 42 99 26 1 3 . 16 92 56 18 54 16 12 579 Partial Spotted 60 | . . . . 15 . 15 . . . . . . . . 30 . Lose Combat Pursuer 465 | . . . . 15 . . . . 180 45 . . 30 75 120 . Influence Decreases 7673 | . 271 70 312 764 691 257 60 5 363 989 916 351 410 1128 369 717 Entered New Map 1439 | . . 43 . 112 186 88 . . . . 282 151 90 472 8 7 Time Decay 4758 | . 240 17 302 592 485 169 50 2 304 505 434 180 270 466 300 442 Lost Part 876 | . 31 10 10 60 20 . 10 3 59 104 80 . 10 190 39 250 Lost Ally 600 | . . . . . . . . . . 380 120 20 40 . 22 18 Squads Dispatched 49 | . 2 . 4 3 8 2 . . 2 6 . . 7 4 3 8 Investigation 11 | . 2 . 1 . 2 . . . . 2 . . . 1 3 . Extermination 14 | . . . . . 3 1 . . 1 . . . 1 3 . 5 Reinforcement 18 | . . . 3 3 3 . . . 1 3 . . 5 . . . Assault 1 | . . . . . . . . . . 1 . . . . . . Garrison 5 | . . . . . . 1 . . . . . . 1 . . 3 Intercept . | . . . . . . . . . . . . . . . . . Searches Triggered . | . . . . . . . . . . . . . . . . . Construction Impeded 7 | . . . . 1 1 . . . . 3 . . 2 . . . Haulers Reinforced . | . . . . . . . . . . . . . . . . . Active Scanning Responses . | . . . . . . . . . . . . . . . . . Cargo Convoy Interrupts 1 | . . . . . . . . . . . . . . . . 1 Stealth | -11 -10 -10 -9 -8 -7 -7 -7 -7 -5 -5 -5 -5 -5 -4 -3 -2 --------- Run | Yrd Mat Min Mat Mat Fac Sto Rec Scr Fac Ext Cet Arc Hub Fac Res Res Distress Signals 18 | . 1 . 1 5 2 . . . . 4 2 . . . 3 . Communications Jammed . | . . . . . . . . . . . . . . . . . Distress Signals . | . . . . . . . . . . . . . . . . . Times Spotted 357 | . 19 4 24 38 27 2 . 30 19 47 13 22 24 17 26 45 Peak Tracking Total 8 | . 4 3 4 6 4 1 . 8 7 5 5 1 5 7 5 8 Tactical Retreats 19 | . . . . 1 . . . . 6 3 . . 2 3 4 . Traps | -11 -10 -10 -9 -8 -7 -7 -7 -7 -5 -5 -5 -5 -5 -4 -3 -2 ------- Run | Yrd Mat Min Mat Mat Fac Sto Rec Scr Fac Ext Cet Arc Hub Fac Res Res Traps Triggered 7 | . . . . . 2 . . . . . . . . 1 4 . Indirectly . | . . . . . . . . . . . . . . . . . Trap Hack Attempts . | . . . . . . . . . . . . . . . . . Triggered . | . . . . . . . . . . . . . . . . . Disarmed . | . . . . . . . . . . . . . . . . . Reprogrammed . | . . . . . . . . . . . . . . . . . Reused . | . . . . . . . . . . . . . . . . . Traps Extracted . | . . . . . . . . . . . . . . . . . Installed . | . . . . . . . . . . . . . . . . . Triggered . | . . . . . . . . . . . . . . . . . Machines | -11 -10 -10 -9 -8 -7 -7 -7 -7 -5 -5 -5 -5 -5 -4 -3 -2 ---------- Run | Yrd Mat Min Mat Mat Fac Sto Rec Scr Fac Ext Cet Arc Hub Fac Res Res Machines Disabled 43 | . 1 . 3 6 2 2 . 3 1 12 . 2 6 2 1 2 Max in Single Turn 3 | . 1 . 3 3 1 1 . 1 1 1 . 1 1 1 1 1 Garrison Access 1 | . . . . 1 . . . . . . . . . . . . Machines Repaired . | . . . . . . . . . . . . . . . . . Machines Dismantled 8 | . . . . . . . . . . 8 . . . . . . Machines Sabotaged . | . . . . . . . . . . . . . . . . . Overloaded Fab Kills . | . . . . . . . . . . . . . . . . . Hacking | -11 -10 -10 -9 -8 -7 -7 -7 -7 -5 -5 -5 -5 -5 -4 -3 -2 --------- Run | Yrd Mat Min Mat Mat Fac Sto Rec Scr Fac Ext Cet Arc Hub Fac Res Res Machines Accessed 75 | . 4 1 6 8 7 3 10 3 3 9 2 1 4 7 5 2 Terminals 46 | . 4 . 4 4 4 3 6 . 3 9 2 . 4 1 2 . Fabricators 5 | . . . . . 1 . . . . . . . . 3 1 . Repair Stations 7 | . . . 1 2 1 . . . . . . . . 2 . 1 Recycling Units 7 | . . . 1 . 1 . 4 . . . . . . . 1 . Scanalyzers 3 | . . . . 1 . . . . . . . . . 1 1 . Garrison Access 2 | . . . . 1 . . . . . . . . . . . 1 Total Hacks 255 | . 11 1 19 28 31 5 26 16 14 23 7 25 10 25 11 3 Successful 142 | . 4 1 13 21 23 3 5 16 5 5 2 25 4 10 3 2 Failed 110 | . 6 . 5 6 8 2 21 . 9 18 5 . 6 15 8 1 Catastrophic 25 | . 1 . . 1 2 . 6 . 2 7 . . 4 1 1 . Database Lockouts 3 | . 1 . 1 1 . . . . . . . . . . . . Manual 81 | . 10 . 10 12 11 4 11 . 6 1 1 4 6 4 1 . Terminals 129 | . 11 . 10 13 11 5 16 . 14 23 7 . 10 5 4 . Fabricators 12 | . . . . . 2 . . . . . . . . 8 2 . Repair Stations 45 | . . . 7 12 16 . . . . . . . . 8 . 2 Recycling Units 16 | . . . 2 . 2 . 10 . . . . . . . 2 . Scanalyzers 9 | . . . . 2 . . . . . . . . . 4 3 . Garrison Access 2 | . . . . 1 . . . . . . . . . . . 1 Terminal Hacks 86 | . 4 1 6 7 4 3 3 16 5 5 2 25 4 . 1 . Record 39 | . . . . . . . . 12 . . 1 25 1 . . . Part Schematic 3 | . . . . . . . . . 1 . . . 2 . . . Robot Schematic 2 | . . . . . . 1 1 . . . . . . . . . Robot Analysis 16 | . 2 . 2 . 4 . 1 4 2 1 . . . . . . Prototype ID Bank 3 | . . . 1 1 . . 1 . . . . . . . . . Open Door 6 | . . 1 . . . 1 . . . 3 1 . . . . . Branch Access Points 4 | . 1 . 1 1 . . . . . . . . 1 . . . Terminal Index 3 | . 1 . 1 1 . . . . . . . . . . . . Repair Station Index 1 | . . . . 1 . . . . . . . . . . . . Locate Traps 1 | . . . . 1 . . . . . . . . . . . . Recall Reinforcements 2 | . . . 1 . . . . . 1 . . . . . . . Registered Components 5 | . . . . 2 . 1 . . 1 . . . . . 1 . Zone Layout 1 | . . . . . . . . . . 1 . . . . . . Fabricator Hacks 5 | . . . . . 1 . . . . . . . . 3 1 . Network Status 1 | . . . . . 1 . . . . . . . . . . . Load Schematic 2 | . . . . . . . . . . . . . . 2 . . Build 2 | . . . . . . . . . . . . . . 1 1 . Repair Station Hacks 39 | . . . 6 11 16 . . . . . . . . 4 . 2 Scan Component 21 | . . . 3 6 8 . . . . . . . . 3 . 1 Repair 18 | . . . 3 5 8 . . . . . . . . 1 . 1 Recycling Unit Hacks 6 | . . . 1 . 2 . 2 . . . . . . . 1 . Retrieve Components 6 | . . . 1 . 2 . 2 . . . . . . . 1 . Scanalyzer 5 | . . . . 2 . . . . . . . . . 3 . . Insert Component 1 | . . . . . . . . . . . . . . 1 . . Analyze 2 | . . . . . . . . . . . . . . 2 . . Retrieve Study 2 | . . . . 2 . . . . . . . . . . . . Garrison Access Hacks 1 | . . . . 1 . . . . . . . . . . . . Seal Access 1 | . . . . 1 . . . . . . . . . . . . Unauthorized Hacks . | . . . . . . . . . . . . . . . . . Terminals . | . . . . . . . . . . . . . . . . . Fabricators . | . . . . . . . . . . . . . . . . . Repair Stations . | . . . . . . . . . . . . . . . . . Recycling Units . | . . . . . . . . . . . . . . . . . Scanalyzers . | . . . . . . . . . . . . . . . . . Garrison Access . | . . . . . . . . . . . . . . . . . Data Cores Recovered 1 | . . . 1 . . . . . . . . . . . . . Used . | . . . . . . . . . . . . . . . . . Hacking Detections 58 | . 3 . 6 7 6 2 8 . 3 6 1 . 4 5 5 2 Full Trace Events 14 | . 3 . 1 . . . 7 . . 2 . . . 1 . . Feedback Events 2 | . . . . . . . 1 . . . . . . 1 . . Corruption 1 | . . . . . . . . . . . . . . 1 . . Hackware Fried 1 | . . . . . . . 1 . . . . . . . . . Feedback Blocked . | . . . . . . . . . . . . . . . . . Robot Schematics Acquired 2 | . . . . . . 1 1 . . . . . . . . . Robots Built 4 | . . . . . . . . . . . . . . . 4 . Authchips . | . . . . . . . . . . . . . . . . . Time 204 | . . . . . . . . . . . . . . . 204 . Total Robot Build Rating 32 | . . . . . . . . . . . . . . . 32 . Part Schematics Acquired 3 | . . . . . . . . . 1 . . . 2 . . . Parts Built 2 | . . . . . . . . . . . . . . 2 . . Authchips 1 | . . . . . . . . . . . . . . 1 . . Time 58 | . . . . . . . . . . . . . . 58 . . Total Part Build Rating 14 | . . . . . . . . . . . . . . 14 . . Part Studies Acquired 2 | . . . . 2 . . . . . . . . . . . . Parts Repaired 16 | . . . 3 5 8 . . . . . . . . . . . Time 835 | . . . 156 226 328 . . . . . . . . 89 . 36 Parts Recycled . | . . . . . . . . . . . . . . . . . Recycled Matter . | . . . . . . . . . . . . . . . . . Retrieved Matter . | . . . . . . . . . . . . . . . . . Retrieved Components 18 | . . . 9 . . . 6 . . . . . . . 3 . Parts Scanalyzed 1 | . . . . . . . . . . . . . . 1 . . Part Schematics Acquired . | . . . . . . . . . . . . . . . . . Parts Damaged . | . . . . . . . . . . . . . . . . . Bothacking | -11 -10 -10 -9 -8 -7 -7 -7 -7 -5 -5 -5 -5 -5 -4 -3 -2 ------------ Run | Yrd Mat Min Mat Mat Fac Sto Rec Scr Fac Ext Cet Arc Hub Fac Res Res Used RIF Installer . | . . . . . . . . . . . . . . . . . Robots Hacked 1 | . . . . . . . . . . . . 1 . . . . Non-combat . | . . . . . . . . . . . . . . . . . Combat 1 | . . . . . . . . . . . . 1 . . . . Robot Hacks Applied 1 | . . . . . . . . . . . . 1 . . . . parse_system 1 | . . . . . . . . . . . . 1 . . . . Relay Couplers Released 3 | . . . . . . . . . . . . . . . . 3 Programmers 3 | . . . . . . . . . . . . . . . . 3 Fabnet Peak Effective % . | . . . . . . . . . . . . . . . . . Robots Rewired 12 | . . . . . . . . . . 12 . . . . . . Allies Hacked 2 | . . . . . . . . . . . . . . . . 2 Hacks Repelled . | . . . . . . . . . . . . . . . . . Allies | -11 -10 -10 -9 -8 -7 -7 -7 -7 -5 -5 -5 -5 -5 -4 -3 -2 -------- Run | Yrd Mat Min Mat Mat Fac Sto Rec Scr Fac Ext Cet Arc Hub Fac Res Res Total Allies 37 | . . . . . . . . . . 28 5 . . . 4 . Largest Group 12 | . . . . . . . . . . 12 11 5 4 . 4 1 Highest-Rated Group 766 | . . . . . . . . . . 463 766 403 372 . 120 26 Highest-Rated Ally 159 | . . . . . . . . . . 159 159 96 96 . 30 26 Initial UFD Resources 48 | . . . . . . . . . 38 38 38 38 38 42 44 48 Total Orders 1 | . . . . . . . . 1 . . . . . . . . EXPLORE 1 | . . . . . . . . 1 . . . . . . . . Ally Attacks 452 | . . . . . . . . . . 234 85 17 86 . 24 6 Total Damage 11610 | . . . . . . . . . . 4229 2789 624 3502 . 381 85 Kills 77 | . . . . . . . . . . 30 12 4 28 . 3 . Allies Corrupted 2 | . . . . . . . . . . . . . 1 . . 1 Allies Melted 9 | . . . . . . . . 9 . . . . . . . . Intel | -11 -10 -10 -9 -8 -7 -7 -7 -7 -5 -5 -5 -5 -5 -4 -3 -2 ------- Run | Yrd Mat Min Mat Mat Fac Sto Rec Scr Fac Ext Cet Arc Hub Fac Res Res Active Infowar (turns) 13084 | . . . . 1421 1675 584 857 2489 1094 2516 369 8 402 932 . 737 Sensors 12463 | . . . . 1421 1675 584 857 2423 593 2503 369 8 397 896 . 737 Terrain 1670 | . . . . . . . . . . 820 . . 289 561 . . Traps 3252 | . . . . . . . . 571 1094 1587 . . . . . . Robot Analysis Total 16 | . 2 . 2 . 4 . 1 4 2 1 . . . . . . Derelict Logs Recovered 2 | . . 2 . . . . . . . . . . . . . . Drone Launches 2 | . . . . . . . . 2 . . . . . . . . Drone Recoveries . | . . . . . . . . . . . . . . . . . Exploration | -11 -10 -10 -9 -8 -7 -7 -7 -7 -5 -5 -5 -5 -5 -4 -3 -2 ------------- Run | Yrd Mat Min Mat Mat Fac Sto Rec Scr Fac Ext Cet Arc Hub Fac Res Res Turns Passed 20170 | 83 590 535 1202 1879 2044 584 857 2489 1094 2527 1077 377 589 1206 1300 1737 Spaces Moved 11174 | 49 220 361 478 753 992 185 783 1497 807 1226 487 190 314 764 1117 951 Core 526 | 3 . . . . . . . 1 . . . . . 246 271 5 Treads 928 | 46 220 135 478 . . . . . 41 . 8 . . . . . Legs 9278 | . . . . 753 992 185 783 1496 766 1226 479 190 314 518 630 946 Wheels 226 | . . 226 . . . . . . . . . . . . . . Hover . | . . . . . . . . . . . . . . . . . Flight 216 | . . . . . . . . . . . . . . . 216 . Fastest Speed 40 | 50 160 115 160 100 100 100 105 96 95 112 120 120 120 50 40 117 Average Speed 116 | 153 176 132 160 108 100 103 105 107 109 123 177 120 120 98 91 127 Slowest Speed 900 | 160 240 240 160 245 100 105 105 650 270 190 260 120 120 190 250 900 Overloaded Moves . | . . . . . . . . . . . . . . . . . Propulsion Burnouts . | . . . . . . . . . . . . . . . . . Robots Hopped . | . . . . . . . . . . . . . . . . . Potential Cave-ins . | . . . . . . . . . . . . . . . . . Cave-ins Triggered . | . . . . . . . . . . . . . . . . . Exploration Rate (%) 48 | 3 37 79 40 45 26 30 86 96 10 96 90 97 27 18 19 17 Regions Visited 16 Branch Regions 8 Pre-discovered Areas 2 | . . 1 . . . . . 1 . . . . . . . . Known Exits Taken 14 | . 1 1 . 1 1 1 1 1 1 1 1 1 1 1 1 . Unknown Exits Taken 2 | 1 . . 1 . . . . . . . . . . . . . Scrap Searched 7 | . . 1 . . . . . 6 . . . . . . . . Spaces Dug 43 | . . . . 15 2 . 3 . 8 2 . . . 2 4 7 Terrain Destroyed 835 | . . . 38 134 25 . 3 296 8 40 3 5 3 8 5 267 Melee 25 | . . . . 1 2 . 3 . 8 2 . . . 2 . 7 Projectile 84 | . . . . 18 . . . . . 38 3 5 3 6 5 6 AOE 726 | . . . 38 115 23 . . 296 . . . . . . . 254 Terrain Rammed . | . . . . . . . . . . . . . . . . . Walls Destroyed . | . . . . . . . . . . . . . . . . . Machines Disabled . | . . . . . . . . . . . . . . . . . Actions | -11 -10 -10 -9 -8 -7 -7 -7 -7 -5 -5 -5 -5 -5 -4 -3 -2 --------- Run | Yrd Mat Min Mat Mat Fac Sto Rec Scr Fac Ext Cet Arc Hub Fac Res Res Total 16982 | 54 310 418 827 1598 1900 565 814 2323 957 1995 674 309 488 1147 1341 1262 Wait 4185 | . 15 43 270 647 763 348 15 759 96 413 112 83 136 302 73 110 Move 11158 | 48 219 360 477 752 991 184 782 1496 806 1225 486 189 313 763 1116 951 Hop . | . . . . . . . . . . . . . . . . . Pick Up 152 | . 5 8 9 25 16 2 6 8 3 16 8 6 1 5 20 14 Fast Attach 185 | 6 2 2 6 11 8 7 . 7 10 33 16 3 7 7 48 12 Attach 84 | . 2 1 2 8 7 . 1 5 5 15 6 . 1 13 11 7 Detach 39 | . . 1 1 1 3 . . 1 3 10 5 . . 2 7 5 Swap 190 | . 3 2 12 30 27 4 2 7 1 32 11 2 9 14 7 27 Drop 186 | . 1 1 7 26 16 11 5 14 1 28 16 9 4 4 34 9 Fire 508 | . 63 . 43 97 66 6 . 22 . 83 14 16 16 25 22 35 Melee 146 | . . . . 1 3 3 3 2 30 6 . 1 . 8 . 89 Ram 5 | . . . . . . . . . . . . . . 4 1 . Kick 3 | . . . . . . . . . 2 . . . 1 . . . Crush . | . . . . . . . . . . . . . . . . . Escape Stasis . | . . . . . . . . . . . . . . . . . Rewire 74 | . . . . . . . . 2 . 69 . . . . . 3 Trap . | . . . . . . . . . . . . . . . . . Miscellaneous 67 | . . . . . . . . . . 65 . . . . 2 . Route ------- -11/Scrapyard -10/Materials (discovered 2 exits: *Min x2) -10/Mines -9/Materials (discovered 2 exits: *Mat / Min) -8/Materials -7/Factory (discovered 2 exits: *Sto x2) -7/Storage -7/Recycling (discovered 2 exits: *Fac / *Scr) -7/Scraptown (discovered 2 exits: *Fac x2) -5/Factory -5/Extension (discovered 3 exits: *Fac x2 / *Cet) -5/Cetus (discovered 3 exits: *Fac x2 / *Arc) -5/Archives (discovered 3 exits: *Fac / *Hub x2) -5/Hub_04(d) (discovered 2 exits: *Fac x2) -4/Factory -3/Research -2/Research History --------- Turn | Location | Event 6 | -11/Scrapyard | Discovered new exit (range 15) 84 | -11/Scrapyard | Entered Materials 307 | -10/Materials | Build established: Mutant 341 | -10/Materials | Identified exit to Mines 451 | -10/Materials | Central database locked down 560 | -10/Materials | Core integrity fell below 50% 674 | -10/Materials | Entered Mines 680 | -10/Mines | Met a Derelict who couldn't figure out how to use a Trap Extractor 816 | -10/Mines | Learned location of Zion (-7) 852 | -10/Mines | Learned Materials trap positions 949 | -10/Mines | Joined a pair of Derelicts in attacking an 0b10 outpost 1091 | -10/Mines | Received a Rocket Launcher from a helpful Derelict 1202 | -10/Mines | Discovered new exit (range 5) 1207 | -10/Mines | Identified exit to Materials 1209 | -10/Mines | Core integrity fell below 20% 1209 | -10/Mines | Entered Materials 1209 | -9/Materials | Evolved 2 slots: Utility x2 1210 | -9/Materials | Loaded intel: 12 trap records 1562 | -9/Materials | Central database locked down 1578 | -9/Materials | Build established: Scavenger-Mutant 2127 | -9/Materials | Repaired Corrupted Cryofiber Web 2181 | -9/Materials | Repaired Corrupted Imp. Signal Interpreter 2232 | -9/Materials | Repaired Beamcaster 2293 | -9/Materials | Discovered new exit (range 13) 2322 | -9/Materials | Identified exit to Mines 2411 | -9/Materials | Entered another Materials area 2411 | -8/Materials | Evolved 2 slots: Propulsion x1, Utility x1 2766 | -8/Materials | Central database locked down 3117 | -8/Materials | Lost 3 parts (1p2n) 3366 | -8/Materials | Discovered new exit (range 13) 3487 | -8/Materials | Repaired Beamcaster 3532 | -8/Materials | Repaired Gauss Rifle 3571 | -8/Materials | Repaired Carbon-fiber Leg+ 3616 | -8/Materials | Repaired Hvy. Laser 4015 | -8/Materials | Core integrity fell below 50% 4107 | -8/Materials | Repaired Beamcaster 4289 | -8/Materials | Identified exit to Factory 4290 | -8/Materials | Entered Factory 4290 | -7/Factory | Evolved 2 slots: Utility x2 4353 | -7/Factory | Build established: Hacker-Mutant 4718 | -7/Factory | Discovered new exit (range 15) 4733 | -7/Factory | Identified exit to Storage 4848 | -7/Factory | Repaired VSS Leg 4888 | -7/Factory | Repaired Carbon-fiber Leg+ 4933 | -7/Factory | Repaired Gauss Rifle 4973 | -7/Factory | Repaired Carbon-fiber Leg+ 5024 | -7/Factory | Repaired Beamcaster 5212 | -7/Factory | Repaired Gatling Laser 5251 | -7/Factory | Repaired Cryofiber Web 5290 | -7/Factory | Repaired Carbon-fiber Leg+ 5416 | -7/Factory | Found Rocket Array 5418 | -7/Factory | Found Rocket Array 6099 | -7/Factory | Discovered exit to Storage (range 14) 6334 | -7/Factory | Entered Storage 6378 | -7/Storage | Found Rocket Array 6496 | -7/Storage | Used back door to open Recycling access 6496 | -7/Storage | Discovered new exit (range 5) 6639 | -7/Storage | Garrison activated, responded to threat 6675 | -7/Storage | Identified exit to Recycling 6918 | -7/Storage | Entered Recycling 7319 | -7/Recycling | Discovered new exit (range 7) 7332 | -7/Recycling | Identified exit to Factory 7572 | -7/Recycling | Hacking Suite fried by hacking feedback 7749 | -7/Recycling | Scanned before Scraplab entrance 7764 | -7/Recycling | Entered Scraplab 7773 | -7/Recycling | Discovered new exit (range 2) 7773 | -7/Recycling | Identified exit to Scraptown 7775 | -7/Recycling | Entered Scraptown 8006 | -7/Scraptown | Discovered exit to Factory (range 7) 8067 | -7/Scraptown | Visited Shadow of the Wyrm 8078 | -7/Scraptown | Visited Bundlers 8145 | -7/Scraptown | Visited Awakened 8200 | -7/Scraptown | Visited SPCMW 8221 | -7/Scraptown | Visited Symbiants 8254 | -7/Scraptown | Visited UFD Registry 8254 | -7/Scraptown | Registered with UFD as "Arcchassis" 8474 | -7/Scraptown | Visited Cyclists 8488 | -7/Scraptown | Entered Cyclist Reading Room 8714 | -7/Scraptown | Visited A0-MCA Data Center 8720 | -7/Scraptown | Given a B rating by A0-MCA 8726 | -7/Scraptown | Found A0-MCA's Component Scanner 8766 | -7/Scraptown | Visited Derelict Rescue Squad 8795 | -7/Scraptown | Visited Curators Association 8820 | -7/Scraptown | Found DRS Beacon 8870 | -7/Scraptown | Visited Junk Repository 9013 | -7/Scraptown | Discovered exit to Factory (range 57) 9353 | -7/Scraptown | Visited Analyses Database 9474 | -7/Scraptown | Visited LU-1G1's Boring Crew 9640 | -7/Scraptown | Met Optimus 9640 | -7/Scraptown | Accepted into 0bPrime 10000 | -7/Scraptown | Build established: Hacker-Assassin 10040 | -7/Scraptown | Civil war broke out across Scraptown 10045 | -7/Scraptown | Found Surveybot 24 Chip 10053 | -7/Scraptown | Found MA-1KR's Cyclogen 10096 | -7/Scraptown | Core integrity fell below 50% 10208 | -7/Scraptown | Lost 17 allies 10236 | -7/Scraptown | Destroyed 22 combat bots 10246 | -7/Scraptown | Lost 8 parts (3n1u4w) 10264 | -7/Scraptown | Entered Factory 10264 | -5/Factory | Evolved 4 slots: Power x1, Propulsion x1, Utility x2 10505 | -5/Factory | Build established: Hacker-Mutant 10780 | -5/Factory | Discovered new exit (range 16) 10879 | -5/Factory | Identified exit to Extension 11056 | -5/Factory | Build established: Hacker-Assassin 11344 | -5/Factory | System corruption reached 10% 11358 | -5/Factory | Entered Extension 11377 | -5/Extension | Lost 4 parts (1p2n1u) 11432 | -5/Extension | Build established: Hacker-Mutant 11748 | -5/Extension | Lost 3 parts (1p2n) 11799 | -5/Extension | Rescued a captive Derelict 11800 | -5/Extension | Rescued a captive Derelict 11849 | -5/Extension | Rescued a captive Derelict 11933 | -5/Extension | Lost 3 allies 12117 | -5/Extension | Spotted B-75 Beast 12139 | -5/Extension | Allies destroyed B-75 Beast 12142 | -5/Extension | Spotted B-75 Beast 12178 | -5/Extension | Lost 4 allies 12235 | -5/Extension | Destroyed B-75 Beast 12463 | -5/Extension | Rescued a captive Derelict 12522 | -5/Extension | Rescued a captive Derelict 12523 | -5/Extension | Rescued a captive Derelict 12551 | -5/Extension | Rescued a captive Derelict 12622 | -5/Extension | Build established: Scavenger-Skirmisher 12695 | -5/Extension | Rescued A7 12723 | -5/Extension | Rescued a captive Derelict 12729 | -5/Extension | Rescued a captive Derelict 12734 | -5/Extension | Attached CPS modules to A7 12789 | -5/Extension | Lost 4 parts (1p2n1u) 12838 | -5/Extension | Rescued a captive Derelict 12840 | -5/Extension | Rescued a captive Derelict 13056 | -5/Extension | Rescued a captive Derelict 13057 | -5/Extension | Rescued a captive Derelict 13119 | -5/Extension | Rescued a captive Derelict 13157 | -5/Extension | Rescued a captive Derelict 13157 | -5/Extension | Rescued a captive Derelict 13182 | -5/Extension | Discovered new exit (range 15) 13189 | -5/Extension | Discovered new exit (range 14) 13346 | -5/Extension | Discovered new exit (range 12) 13758 | -5/Extension | First assault squad dispatched 13781 | -5/Extension | Core integrity fell below 50% 13815 | -5/Extension | Lost 5 allies 13842 | -5/Extension | Identified exit to Cetus 13885 | -5/Extension | Entered Cetus 13885 | -5/Cetus | Accompanied by 7 allies (A7) 13890 | -5/Cetus | Acquired a Cetus Manufacturing Module code from A7 13900 | -5/Cetus | Spotted Cetus Guard 13901 | -5/Cetus | Spotted Cetus Guard 13902 | -5/Cetus | Spotted Cetus Guard 13904 | -5/Cetus | Spotted Cetus Guard 13908 | -5/Cetus | Allies destroyed Cetus Guard 13916 | -5/Cetus | Destroyed Cetus Guard 13930 | -5/Cetus | Allies destroyed Cetus Guard 13931 | -5/Cetus | Allies destroyed Cetus Guard 13960 | -5/Cetus | Lost 7 parts (1p3n3w) 14029 | -5/Cetus | Discovered new exit (range 16) 14111 | -5/Cetus | Build established: Scavenger-Mutant 14255 | -5/Cetus | Started Cetus Manufacturing Module 14274 | -5/Cetus | Escorted A7 to Cetus Mainframe 14280 | -5/Cetus | Manufactured an Enhanced Grunt 14305 | -5/Cetus | Manufactured an Enhanced Grunt 14330 | -5/Cetus | Manufactured an Enhanced Grunt 14355 | -5/Cetus | Manufactured an Enhanced Grunt 14380 | -5/Cetus | Manufactured an Enhanced Grunt 14420 | -5/Cetus | Attached CPS modules to Enhanced Grunt 14457 | -5/Cetus | Discovered new exit (range 15) 14487 | -5/Cetus | Identified exit to Archives 14550 | -5/Cetus | Spotted Cetus Guard 14551 | -5/Cetus | Spotted Cetus Guard 14556 | -5/Cetus | Spotted Cetus Guard 14557 | -5/Cetus | Spotted Cetus Guard 14567 | -5/Cetus | Allies destroyed Cetus Guard 14568 | -5/Cetus | Destroyed Cetus Guard 14577 | -5/Cetus | Allies destroyed Cetus Guard 14580 | -5/Cetus | Found Prototype Device 14580 | -5/Cetus | Identified Exp. Thermal Shield 14585 | -5/Cetus | Allies destroyed Cetus Guard 14588 | -5/Cetus | Discovered new exit (range 16) 14596 | -5/Cetus | Met Revision 17 14610 | -5/Cetus | Lost 4 allies 14635 | -5/Cetus | Security sweep announced 14692 | -5/Cetus | Found Prototype Protection 14692 | -5/Cetus | Identified Med. Regenerative Plating 14698 | -5/Cetus | Extracted ID and sensor layout for unrecognized location from A7's data core 14962 | -5/Cetus | Entered Archives 14962 | -5/Archives | Accompanied by 5 allies 15057 | -5/Archives | Discovered new exit (range 16) 15160 | -5/Archives | Unable to access archive contents 15164 | -5/Archives | Discovered new exit (range 15) 15172 | -5/Archives | Unable to access archive contents 15184 | -5/Archives | Unable to access archive contents 15196 | -5/Archives | Unable to access archive contents 15200 | -5/Archives | Discovered new exit (range 14) 15218 | -5/Archives | Identified exit to Hub_04(d) 15261 | -5/Archives | Identified exit to Factory 15339 | -5/Archives | Entered Hub_04(d) 15339 | -5/Hub_04(d) | Accompanied by 4 allies 15409 | -5/Hub_04(d) | Discovered exit to Factory (range 5) 15492 | -5/Hub_04(d) | Watched by a mysterious "MATRIX" hacker 15513 | -5/Hub_04(d) | Garrison activated, responded to threat 15768 | -5/Hub_04(d) | Discovered exit to Factory (range 16) 15928 | -5/Hub_04(d) | Entered Factory 15928 | -4/Factory | Evolved 2 slots: Weapon x2 15937 | -4/Factory | Build established: Scavenger-Skirmisher 16137 | -4/Factory | Fabricated Lrn. Terrain Scanner (x2) 16976 | -4/Factory | Lost 16 parts (2p4n7u3w) 17117 | -4/Factory | Core integrity fell below 50% 17119 | -4/Factory | Discovered new exit (range 16) 17126 | -4/Factory | Identified exit to Research 17134 | -4/Factory | Entered Research 17134 | -3/Research | Evolved 2 slots: Utility x2 17160 | -3/Research | Found Prototype Device 17160 | -3/Research | Identified Exp. Thermal Defense Suite 17169 | -3/Research | Spotted B-86 Titan 17334 | -3/Research | Revision forces began assault on 0b10 17382 | -3/Research | Build established: Hacker-Mutant 17406 | -3/Research | Lost 6 parts (2n3u1w) 17426 | -3/Research | Core integrity fell below 50% 17438 | -3/Research | Met up with Revision 17++ 17587 | -3/Research | Fabricated S-43 Plague (x4) 17834 | -3/Research | Research terminal network offline 17930 | -3/Research | Found Fusion Bomb Launcher 17932 | -3/Research | Found Fusion Bomb Launcher 18005 | -3/Research | Discovered new exit (range 7) 18029 | -3/Research | Identified exit to Research 18189 | -3/Research | Build established: Scavenger-Tank 18201 | -3/Research | Found Prototype Processor 18201 | -3/Research | Identified Exp. Target Analyzer 18351 | -3/Research | Spotted Striker 18387 | -3/Research | Lost 3 allies 18434 | -3/Research | Entered another Research area 18434 | -2/Research | Accompanied by 1 ally 18434 | -2/Research | Evolved 2 slots: Propulsion x1, Utility x1 18677 | -2/Research | Spotted B-90 Cyclops 18782 | -2/Research | Garrison activated, responded to threat 18944 | -2/Research | System corruption reached 10% 19119 | -2/Research | Build established: Scavenger-Gunner 19142 | -2/Research | Spotted B-90 Cyclops 19532 | -2/Research | Cargo convoy interrupted 19876 | -2/Research | System corruption reached 30% 19941 | -2/Research | Lost 10 parts (1p4n2u3w) 20006 | -2/Research | Lost 3 parts (1n1u1w) 20102 | -2/Research | Core integrity fell below 50% 20156 | -2/Research | Core integrity fell below 20% 20171 | -2/Research | Destroyed by G-73 Enforcer with Phase Gun Last Messages --------------- 20152_ System corrupted: Matter fused (-9). 20152_ R-10 Processor collects Imp. Antigrav System. 20152_ K-01 Serf collects debris. 20153_ P-80 Master destroyed. 20154_ K-01 Serf collects debris. 20155_ R-10 Processor collects Sml. Battery. 20155_ K-01 Serf collects debris. 20156_ Acquired 38 matter. 20157_ K-01 Serf collects debris. 20158_ Imp. Hacking Suite destroyed. 20158_ K-01 Serf collects debris. 20161_ Plasma Lance destroyed. 20161_ K-01 Serf collects debris. 20161_ Armor Integrity Analyzer destroyed. 20162_ K-01 Serf collects debris. 20167_ System corrupted: Component data lost. 20167_ K-01 Serf collects debris. 20170_ Acquired Mic. Antimatter Reactor. 20170_ K-01 Serf collects debris. Map ----- +----------------------------------------------------+ | ???????????????????????????????????????# ## !=%# | | ???????????????????????????????????????# ## % !# | | ???????????????????????????????????????# ##! # | | ???????????????????????????????????????# ## ! % # | | ?????????????????????????????????????? # ##% # | | ?????????????????????????????????????# # ## = # | | ?????????????????????????????????????# # # # | | ????????????????????????????????????? # # # | | ???????????????????????????????????? # # # | | ??????????????????????????????????# ## # # | | ??????????????????????????????????# # # | | ??????????????????????????????????## # # ## # | | ?????????????????????????????????####### ######## | | ?????????????????????????????????# | | ???????????????????????#########?# | | ???????????????????????# ! # | | ???????????????????????#! # | | ????????###+???????????# " ##### ###"## | | ???###### ??????????# # #???###?# #? | | ?? #############+###### #???????###? | | ?? p u #??????????? | | ?? #??????????? | | ??????### % #??????????? | | ????????# """ """k" === #??????????? | | ????????# """"" " " == #??????????? | | ????????# """"" !"@ ==w #??????????? | | ??????? # % gg!= #??????????? | | ????????# !%*g| k #??????????? | | ????????# =p #??????????? | | ????????# R k/ ?????????? | | ??????? k #??????????? | | ???????? ############ #??????????? | | ???????? #??????????# #??????????? | | ???????? #??????????? #??????????? | | ????????? #??????????? #??????????? | | ????????? #??????????? #??????????? | | ?????????? ???????????? #??????????? | | ?????????? ????????????? ? #??????????? | | ????????????#+####### ???????????????????????????? | | ????????????????????? ???????????????????????????? | | ????????????????????? ???????????????????????????? | | ????????????????????? ????????? ????????????????? | | ??????????????????????????????? ???????????????? | | ?????????????????????????????? ??????????????? | | ?????????????????????????????? !== ?????????????? | | ????????????????????????????? !== ????????????? | | ?????????????????????????????? === ???????????? | | ????????????????????????????? ############ | | ????????????????????????????? | | ???????????????????????????? | +----------------------------------------------------+ Best States ------------- Heat Dissipation 122 Coolant Potential 80 Energy Generation 43 Energy Capacity 2600 Matter Stores 300 Matter Capacity 300 Sight Range 16 Robot Scan Range 18 Terrain Scan Range 24 Terrain Scan Density 2010 Base Temperature (-) 100 Armor Coverage 450 Resistance: TH 30 Core Shielding 30 Phase Shifting 10 Evasion (%) 70 Target Analysis 12 Core Analysis 6 Armor Integrity Analysis 30 Recoil Reduction 2 Matter Filtering 30 Particle Charging 30 Kinecelleration 40 Offensive Hacking 38 Defensive Hacking 26 Authchip Count 3 Item Schematics ----------------- Imp. Thunder Leg | -5/Factory | Hacked Imp. Cryofiber Web | -5/Hub_04(d) | Hacked Lrn. Terrain Scanner | -5/Hub_04(d) | Hacked Robot Schematics ------------------ S-27 Virus | -7/Storage | Hacked B-48 Gladiator | -7/Recycling | Hacked Fabricated ------------ Lrn. Terrain Scanner | x2 | -4/Factory | Authchip S-43 Plague | x4 | -3/Research | Preloaded Repaired ---------- Cryofiber Web | 33% | -9/Materials | Corrupted Imp. Signal Interpreter | 45% | -9/Materials | Corrupted Beamcaster | 33% | -9/Materials Beamcaster | 4% | -8/Materials Gauss Rifle | 51% | -8/Materials Carbon-fiber Leg | 26% | -8/Materials Hvy. Laser | 50% | -8/Materials Beamcaster | 12% | -8/Materials VSS Leg | 2% | -7/Factory Carbon-fiber Leg | 30% | -7/Factory Gauss Rifle | 65% | -7/Factory Carbon-fiber Leg | 41% | -7/Factory Beamcaster | 74% | -7/Factory Gatling Laser | 5% | -7/Factory Cryofiber Web | 53% | -7/Factory Carbon-fiber Leg | 25% | -7/Factory Studied --------- Carbon-fiber Leg | -8/Materials | Hacked Imp. Aluminum Leg | -8/Materials | Hacked Alien Tech Used ----------------- None Achievements -------------- Killing Spree Well-fed Force Field Challenges ------------ None Game ------ Seed BattleThermalBiocell Manual? 0 Play Time 03:10:58 Cumulative 128.9 hours Start 2026.09.16 @ 15:19:43 End 2026.09.16 @ 18:39:50 Sessions 1 Manual Loads 0 Difficulty Rogue Special Mode None Game No. 145 Rogue 145 Adventurer 0 Explorer 0 Win Type - Total 0 Types 0/0/0/0/0/0/0/0/0/0 Lore% 52 Gallery% 55 Achievement% 44 Wizard Run 0 Options --------- Layout 1 ASCII 0 Keyboard 0 Movement Mouse Keybinds 0 Fullscreen 2 Font 24/Smallcaps Map View 50x35 Zoom Use 0% Tactical HUD 1 Map Filters NONE Filters NONE Steam 1 RUN: 4f63513e-464f-4513-8eca-4cd58be64a75